Cogmind - Beta 12 @@@ ROGUE MODE // 2023.11.19 @ 14:40:33 Player: Rainynight Result: Destroyed self with Rocket Launcher Performance ------------- Evolutions (0) 0 Regions Visited (4) 800 Robots Destroyed (30) 150 Value Destroyed (652) 652 Prototype IDs (25) 500 Alien Tech Used (0) 0 Bonus (300) 300 TOTAL SCORE: 2402 Bonus ------- Aligned with FarCom 300 Cogmind --------- Core Integrity 0/250 Matter 257/300 Energy 125/125 System Corruption 0% Temperature Cool (0) Movement Treading (305) Ox2 Location -9/Mines Parts ------- > --- POWER (1) -------- Light Ion Engine > --- PROPULSION (2) --- Advanced Treads Armored Wheel > --- UTILITY (2) ------ High-capacity Storage Unit Medium Armor Plating > --- WEAPON (2) ------- Light Assault Rifle Rocket Launcher > --- INVENTORY (20) --- Improved Treads Improved Treads Armored Wheel Flight Unit Flight Unit Flight Unit Flight Unit Lightpack 2.0 Trap Scanner Sensor Array Reaction Control System Hacking Suite System Shield Improved Trap Extractor (1/6 Explosive) Light Assault Rifle Rocket Launcher Improved Datajack Makeshift Axe Peak State ------------ > --- POWER ------------ Light Ion Engine > --- PROPULSION ------- Improved Treads Advanced Treads > --- UTILITY ---------- High-capacity Storage Unit Improved Trap Extractor > --- WEAPON ----------- Light Assault Rifle Improved Datajack > --- INVENTORY -------- Improved Treads Armored Wheel Armored Wheel Flight Unit Flight Unit Flight Unit Flight Unit Large Storage Unit Large Matter Pod Trap Scanner Sensor Array Reaction Control System Medium Armor Plating Hacking Suite System Shield Particle Gun Light Assault Rifle Light Assault Rifle Rocket Launcher Rocket Launcher [Rating: 18] Favorites ----------- Power Light Ion Engine Engine Light Ion Engine Propulsion Armored Wheel Treads Improved Treads Leg Aluminum Leg Wheel Armored Wheel Utility Medium Armor Plating Device Trap Scanner Storage High-capacity Storage Unit Protection Medium Armor Plating Weapon Light Assault Rifle Energy Gun Small Laser Ballistic Gun Light Assault Rifle Launcher Rocket Launcher Special Melee Weapon Improved Datajack Build | -11 -10 -10 -10 -9 ------- Run | Jun Mat Min Exi Min Slots Evolved . | . . . . . Power . | . . . . . Propulsion . | . . . . . Utility . | . . . . . Weapon . | . . . . . Parts Attached 40 | . 10 29 . 1 Power 3 | . 1 2 . . Engine 3 | . 1 2 . . Core . | . . . . . Reactor . | . . . . . Propulsion 9 | . 3 6 . . Treads 5 | . 1 4 . . Leg . | . . . . . Wheel 4 | . 2 2 . . Hover . | . . . . . Flight . | . . . . . Utility 10 | . 3 7 . . Device 3 | . . 3 . . Storage 2 | . 2 . . . Processor . | . . . . . Hackware . | . . . . . Protection 5 | . 1 4 . . Artifact . | . . . . . Weapon 18 | . 3 14 . 1 Energy Gun 1 | . 1 . . . Energy Cannon . | . . . . . Ballistic Gun 10 | . 2 8 . . Ballistic Cannon . | . . . . . Launcher 6 | . . 5 . 1 Special Weapon . | . . . . . Impact Weapon . | . . . . . Slashing Weapon . | . . . . . Piercing Weapon . | . . . . . Special Melee Weapon 1 | . . 1 . . Unidentified Prototypes . | . . . . . Parts Lost 7 | . 1 6 . . Power 1 | . . 1 . . Propulsion 2 | . . 2 . . Utility 3 | . . 3 . . Weapon 1 | . 1 . . . Highest Loss Streak 3 | . 1 3 . . To Critical Strikes . | . . . . . Average Slot Usage (%) 98 | . 95 99 100 100 Engine 14 | . 14 14 14 14 Treads 15 | . 9 20 14 14 Leg 2 | . 7 . . . Wheel 9 | . 11 7 14 14 Storage 14 | . 14 14 14 14 Protection 12 | . 10 12 14 14 Energy Gun 7 | . 19 . . . Ballistic Gun 18 | . 8 23 28 27 Special Melee Weapon 1 | . . 3 . . Naked Turns . | . . . . . Heaviest Build 57 | 11 54 57 52 52 Greatest Support 45 | 20 24 45 12 12 Greatest Overweight (x) 4 | . 4 4 4 4 Average Overweight (x) 2 | . 2 2 4 4 Largest Inventory Capacity 20 | . 20 20 20 20 Average Capacity 18 | . 15 20 20 20 Most Carried 20 | . 20 20 20 20 Average Carried 17 | . 13 19 19 19 Final Capacity 20 | 8 20 20 20 20 Final Carried 20 | 6 20 20 20 20 Class Distribution -------------------- 100% | Mutant Dominant Class ---------------- Mutant | -10/Materials Mutant | -10/Mines Mutant | -10/Exiles Mutant | -9/Mines Resources | -11 -10 -10 -10 -9 ----------- Run | Jun Mat Min Exi Min Matter Collected 909 | 200 164 456 . 89 Remotely . | . . . . . Salvage Created 710 | . 429 271 . 10 Parts 49 | . 23 24 . 2 Haulers Intercepted 1 | . 1 . . . Recyclers Shooed . | . . . . . Parts Field Recycled . | . . . . . Retrieved Matter . | . . . . . Parts Self-Destructed . | . . . . . Prevented . | . . . . . Kills | -11 -10 -10 -10 -9 ------- Run | Jun Mat Min Exi Min Combat Hostiles Destroyed 38 | . 9 27 . 2 Guns 16 | . 9 7 . . AOE 22 | . . 20 . 2 Classes Destroyed 8 | . 5 3 . . Tunneler 1 | . . 1 . . Hauler 1 | . 1 . . . Operator 1 | . 1 . . . Watcher 2 | . 2 . . . Swarmer 14 | . 3 9 . 2 Grunt 10 | . 6 4 . . Demolisher 1 | . . 1 . . Assembled 13 | . . 13 . . Best Kill Streak 17 | . 4 17 . 2 Combat Bots Only 17 | . 3 17 . 2 Max Kills in Single Turn 7 | . 1 7 . 2 Gunslinging . | . . . . . Exploded 7 | . . 7 . 2 Melee . | . . . . . Uniques/NPCs Destroyed . | . . . . . Combat | -11 -10 -10 -10 -9 -------- Run | Jun Mat Min Exi Min Damage Taken 1849 | . 423 1381 . 45 Core 274 | . 50 179 . 45 Absorbed by Shields . | . . . . . Core Remaining (%) 100 | 100 . . . . Volleys Fired 87 | . 45 40 . 2 Largest 2 | . 2 2 . 1 Hottest 80 | . 80 66 . 33 Shots Fired 166 | . 90 74 . 2 Gun 154 | . 90 64 . . Cannon . | . . . . . Launcher 12 | . . 10 . 2 Special . | . . . . . Kinetic 89 | . 25 64 . . Thermal 54 | . 54 . . . Explosive 12 | . . 10 . 2 Electromagnetic 11 | . 11 . . . Robot Hit Streak 15 | . 10 15 . . Robot Miss Streak 3 | . 3 3 . 1 Penetration Max . | . . . . . Secondary Targets 1 | . . 1 . . Max Gunslinging Chain 1 | . . 1 . . Shots Hit Robots 106 | . 62 44 . . Core Hits 74 | . 24 48 . 2 Critical Kills 1 | . 1 . . . Critical Parts Destroyed . | . . . . . Critical Strikes 1 | . 1 . . . Destroy 1 | . 1 . . . Melee Attacks . | . . . . . Impact . | . . . . . Slashing . | . . . . . Piercing . | . . . . . Sneak Attacks . | . . . . . Combat Hostiles . | . . . . . Follow-up Attacks . | . . . . . Damage Inflicted 2627 | . 694 1847 . 86 Guns 1038 | . 675 363 . . Cannons . | . . . . . Explosions 1570 | . . 1484 . 86 Melee . | . . . . . Ramming 19 | . 19 . . . Kinetic 495 | . 132 363 . . Thermal 405 | . 405 . . . Explosive 1570 | . . 1484 . 86 Electromagnetic 138 | . 138 . . . Impact . | . . . . . Slashing . | . . . . . Piercing . | . . . . . Highest Corruption . | . . . . . Average Corruption . | . . . . . Corruption Purged . | . . . . . Corruption Blocked . | . . . . . Overload Shots . | . . . . . Overflow Damage 65 | . . 65 . . Projectiles . | . . . . . Explosions 65 | . . 65 . . Melee . | . . . . . Knockbacks . | . . . . . Impact . | . . . . . Kinetic . | . . . . . Secondary . | . . . . . Self-Inflicted Damage 96 | . . 51 . 45 Shots 3 | . . 2 . 1 Rammed 2 | . 2 . . . Targets Rammed 3 | . 3 . . . Kicked 1 | . 1 . . . Crushed . | . . . . . Highest Temperature 270 | . 270 105 . . Average Temperature 67 | . 83 36 . . Received Heat Transfer 571 | . 270 301 . . Effects 3 | . 3 . . . Energy Bleed 3 | . 3 . . . Siege Activations . | . . . . . Robots Corrupted . | . . . . . Combat Hostiles . | . . . . . Parts Fried . | . . . . . Impact Corruptions . | . . . . . Robots Melted . | . . . . . Combat Hostiles . | . . . . . Parts Melted 2 | . 2 . . . Heat Transferred 925 | . 925 . . . Parts Sabotaged . | . . . . . Parts Stolen . | . . . . . Parts Stripped . | . . . . . Power Chain Reactions . | . . . . . Missiles Intercepted . | . . . . . Alert | -11 -10 -10 -10 -9 ------- Run | Jun Mat Min Exi Min Peak Influence 196 | . 196 160 . 45 Initial 37 | . . 37 . . Average 55 | . 82 40 . . Maximum Alert Level . | . . . . . Low Security (%) 100 | . 100 100 . 100 Level 1 . | . . . . . Level 2 . | . . . . . Level 3 . | . . . . . Level 4 . | . . . . . Level 5 . | . . . . . High Security . | . . . . . Max Security . | . . . . . Squads Dispatched 4 | . 3 1 . . Investigation 2 | . 1 1 . . Extermination . | . . . . . Reinforcement 2 | . 2 . . . Assault . | . . . . . Garrison . | . . . . . Intercept . | . . . . . Searches Triggered . | . . . . . Construction Impeded . | . . . . . Haulers Reinforced . | . . . . . Active Scanning Responses . | . . . . . Cargo Convoy Interrupts . | . . . . . Stealth | -11 -10 -10 -10 -9 --------- Run | Jun Mat Min Exi Min Distress Signals 1 | . 1 . . . Communications Jammed . | . . . . . Distress Signals . | . . . . . Times Spotted 58 | . 22 35 . 1 Peak Tracking Total 20 | . 3 20 . 1 Tactical Retreats 4 | . 4 . . . Traps | -11 -10 -10 -10 -9 ------- Run | Jun Mat Min Exi Min Traps Triggered . | . . . . . Indirectly . | . . . . . Trap Hack Attempts 13 | . . 13 . . Triggered . | . . . . . Disarmed . | . . . . . Reprogrammed 1 | . . 1 . . Reused . | . . . . . Traps Extracted 1 | . . 1 . . Installed . | . . . . . Triggered . | . . . . . Most Traps Carried 1 | . . 1 1 1 Machines | -11 -10 -10 -10 -9 ---------- Run | Jun Mat Min Exi Min Machines Disabled 1 | . . 1 . . Max in Single Turn 1 | . . 1 . . Machines Repaired . | . . . . . Machines Sabotaged . | . . . . . Overloaded Fab Kills . | . . . . . Hacking | -11 -10 -10 -10 -9 --------- Run | Jun Mat Min Exi Min Machines Accessed 12 | . 7 3 2 . Terminals 7 | . 6 1 . . Fabricators . | . . . . . Repair Stations . | . . . . . Recycling Units 1 | . 1 . . . Scanalyzers . | . . . . . Garrison Access . | . . . . . Total Hacks 35 | . 27 6 2 . Successful 20 | . 14 4 2 . Failed 15 | . 13 2 . . Catastrophic 2 | . 2 . . . Database Lockouts . | . . . . . Manual 15 | . 10 4 1 . Terminals 28 | . 24 4 . . Fabricators . | . . . . . Repair Stations . | . . . . . Recycling Units 3 | . 3 . . . Scanalyzers . | . . . . . Garrison Access . | . . . . . Terminal Hacks 14 | . 9 3 2 . Record 1 | . . . 1 . Prototype ID Bank 1 | . 1 . . . Open Door 2 | . . 2 . . Branch Access Points 1 | . 1 . . . Terminal Index 1 | . 1 . . . Unreport Threat 1 | . . 1 . . Locate Traps 3 | . 3 . . . Recall Reinforcements 1 | . 1 . . . Hauler Manifests 1 | . 1 . . . Zone Layout 1 | . 1 . . . EX-Prototype ID Bank 1 | . . . 1 . Fabricator Hacks . | . . . . . Repair Station Hacks . | . . . . . Recycling Unit Hacks 1 | . 1 . . . Retrieve Components 1 | . 1 . . . Scanalyzer . | . . . . . Garrison Access Hacks . | . . . . . Unauthorized Hacks 5 | . 4 1 . . Terminals 5 | . 4 1 . . Track 4 | . 3 1 . . Operators 1 | . 1 . . . Fabricators . | . . . . . Repair Stations . | . . . . . Recycling Units . | . . . . . Scanalyzers . | . . . . . Garrison Access . | . . . . . Data Cores Recovered . | . . . . . Used . | . . . . . Hacking Detections 8 | . 7 1 . . Full Trace Events 2 | . 2 . . . Feedback Events . | . . . . . Feedback Blocked . | . . . . . Robot Schematics Acquired . | . . . . . Robots Built . | . . . . . Authchips . | . . . . . Time . | . . . . . Total Robot Build Rating . | . . . . . Part Schematics Acquired . | . . . . . Parts Built . | . . . . . Authchips . | . . . . . Time . | . . . . . Total Part Build Rating . | . . . . . Parts Repaired . | . . . . . Time . | . . . . . Parts Recycled . | . . . . . Recycled Matter . | . . . . . Retrieved Matter . | . . . . . Retrieved Components 2 | . 2 . . . Parts Scanalyzed . | . . . . . Part Schematics Acquired . | . . . . . Parts Damaged . | . . . . . Bothacking | -11 -10 -10 -10 -9 ------------ Run | Jun Mat Min Exi Min Used RIF Installer . | . . . . . Robots Hacked . | . . . . . Non-combat . | . . . . . Combat . | . . . . . Robot Hacks Applied . | . . . . . Relay Couplers Released . | . . . . . Fabnet Peak Effective % . | . . . . . Robots Rewired . | . . . . . Allies Hacked . | . . . . . Hacks Repelled . | . . . . . Allies | -11 -10 -10 -10 -9 -------- Run | Jun Mat Min Exi Min Total Allies . | . . . . . Largest Group . | . . . . . Highest-Rated Group . | . . . . . Highest-Rated Ally . | . . . . . Total Orders . | . . . . . Ally Attacks . | . . . . . Total Damage . | . . . . . Kills . | . . . . . Allies Corrupted . | . . . . . Allies Melted . | . . . . . Intel | -11 -10 -10 -10 -9 ------- Run | Jun Mat Min Exi Min Robot Analysis Total . | . . . . . Derelict Logs Recovered 2 | . . 2 . . Drone Launches . | . . . . . Drone Recoveries . | . . . . . Exploration | -11 -10 -10 -10 -9 ------------- Run | Jun Mat Min Exi Min Turns Passed 2730 | . 1008 1268 321 133 Spaces Moved 1456 | 1 573 592 213 77 Core . | . . . . . Treads 237 | . 39 198 . . Legs 175 | 1 174 . . . Wheels 1044 | . 360 394 213 77 Hover . | . . . . . Flight . | . . . . . Fastest Speed 90 | 120 90 150 150 150 Average Speed 156 | 120 137 177 150 150 Slowest Speed 240 | 120 240 232 150 150 Overloaded Moves . | . . . . . Propulsion Burnouts . | . . . . . Robots Hopped . | . . . . . Cave-ins Triggered . | . . . . . Exploration Rate (%) 48 | 1 81 85 60 17 Regions Visited 4 Branch Regions 3 Pre-discovered Areas 4 | . . 3 1 . Known Exits Taken 1 | . 1 . . . Unknown Exits Taken 3 | 1 . 1 1 . Scrap Searched 1 | . . . . 1 Spaces Dug . | . . . . . Terrain Destroyed 69 | . . 64 . 5 Melee . | . . . . . Projectile . | . . . . . AOE 69 | . . 64 . 5 Terrain Rammed . | . . . . . Walls Destroyed . | . . . . . Machines Disabled . | . . . . . Actions | -11 -10 -10 -10 -9 --------- Run | Jun Mat Min Exi Min Total 1769 | . 717 742 216 94 Wait 104 | . 41 51 . 12 Move 1452 | . 572 591 212 77 Hop . | . . . . . Pick Up 40 | . 28 10 1 1 Fast Attach 5 | . 4 1 . . Attach 7 | . 1 6 . . Detach . | . . . . . Swap 28 | . 5 22 . 1 Drop 30 | . 18 8 3 1 Fire 87 | . 45 40 . 2 Melee . | . . . . . Ram . | . . . . . Kick 1 | . 1 . . . Crush 2 | . 2 . . . Escape Stasis . | . . . . . Rewire . | . . . . . Trap 13 | . . 13 . . Miscellaneous . | . . . . . Route ------- -11/Junkyard -10/Materials (discovered 4 exits: [*Mat x2] / *Min x2) -10/Mines (discovered 3 exits: [*Mat x2] / *Exi) -10/Exiles -9/Mines History --------- Turn | Location | Event 1 | -11/Junkyard | Discovered new exit (range 0) 1 | -11/Junkyard | Entered Materials 163 | -10/Materials | Discovered new exit (range 13) 213 | -10/Materials | Discovered new exit (range 12) 301 | -10/Materials | Build established: Mutant 392 | -10/Materials | Discovered new exit (range 15) 445 | -10/Materials | Identified exit to Mines 706 | -10/Materials | Discovered new exit (range 3) 1009 | -10/Materials | Entered Mines 1219 | -10/Mines | Learned location of Storage (-9) 1395 | -10/Mines | Met a Derelict shopkeep closing up shop 1528 | -10/Mines | Discovered new exit (range 8) 1563 | -10/Mines | Assembled infested the area 1568 | -10/Mines | Assisted by a Guerilla fighting off Assembled 1572 | -10/Mines | Core integrity fell below 50% 1588 | -10/Mines | Core integrity fell below 20% 1616 | -10/Mines | Lost 3 parts (1p1n1u) 1617 | -10/Mines | Destroyed 17 combat bots 1633 | -10/Mines | Met a Derelict who couldn't figure out how to use a Trap Extractor 1765 | -10/Mines | Learned location of Zion (-6) 1965 | -10/Mines | Discovered new exit (range 5) 2271 | -10/Mines | Deemed a non-threat by the Exiles lab entrance 2271 | -10/Mines | Discovered new exit (range 5) 2277 | -10/Mines | Entered Exiles 2316 | -10/Exiles | Met 8R-AWN 2340 | -10/Exiles | Met EX-HEX 2381 | -10/Exiles | Met EX-BIN 2399 | -10/Exiles | Aligned with FarCom system 2400 | -10/Exiles | Given EX-Vault access code 2435 | -10/Exiles | Opened EX-Vault 2447 | -10/Exiles | Found Lightpack 2.0 2476 | -10/Exiles | Warned to stay clear of 0b10 Research branches 2523 | -10/Exiles | Met EX-DEC 2572 | -10/Exiles | Discovered new exit (range 14) 2598 | -10/Exiles | Left Exiles lab with Lightpack 2.0 2598 | -10/Exiles | Entered Mines 2632 | -9/Mines | A weapon hastily lodged in a ceiling crevice suddenly fell to the ground 2731 | -9/Mines | Destroyed self with Rocket Launcher Last Messages --------------- World map confirmed: -6/Zion. 02572_ EXIT=FOUND LOCATION=UNKNOWN GOAL=ESCAPE 02598_ Receiving FarCom transmissions... 02599_ K-01 Serf collects debris. 02632_ A Mak. Axe has been hastily shoved under some rubble with a note attached: "Chop chop!" 02635_ Dropped Lgt. Assault Rifle. 02636_ Acquired Mak. Axe. 02662_ T-07 Excavator is excavating. 02702_ Searching scrap... 02702_ Found 30 Matter. 02702_ Found Plasma Cutter. 02702_ Found Imp. Hover Unit. 02702_ Found 36 Matter. 02702_ Found 23 Matter. 02703_ Acquired 23 matter. 02704_ Acquired 36 matter. 02705_ Acquired 30 matter. Map ----- +----------------------------------------------------+ | ???????????????????????????????????????????? | | ???????????????????????????????????????????? | | ???????????????????????????????????????????? | | ???????????????????????????????????????????? | | ???????????????????????????????????????????? | | ???????????????????????????????????????????? | | ???????????????????????????????????????????? | | ???????????????????????????????????????????? | | ???????????????????????????????????????????? | | ???????????????????????????????????????????? | | ????????????????????????? ?????????????????? | | ????????????????????????? ?????????????????? | | ????????????????????????? ?????????????????? | | ????????????????????????? ?????????????????? | | ????????????????????????? ?????????????????? | | ????????????????????????? ?????????????????? | | ?????????????????????????s?????????????????? | | ????????????????????????# #????????????????? | | ???????????????????????? #????????????????? | | ????????????????????????# #????????????????? | | ????????????????????????# #????????????????? | | ????????????????????????# #????????????????? | | ????????????????????????# #????????????????? | | ????????????????????????# #?####???????????? | | ????????????????????????# ### ##??????????? | | ????????????????????????#@ ###????????? | | ????????????????????????#### ##???????? | | ??????????????????????????## ##??????? | | ?????????????????????????## ##?????? | | ?????????????????????????# = ##????? | | ?????????????????????????# ##| #????? | | ?????????????????????????## #### #????? | | ??????????????????????????####??# #????? | | ????????????????????????????????# ##???? | | ????????????????????????????????# #???? | | ?????????????#######????????????# ##???? | | ???????????### #????????????## ###????? | | ???????????? #??###????????# ##??????? | | ?????????????# #?? #????????# #???????? | | ?????????????# #??# #????????# #???????? | | ?????????????# #??# #????????# #???????? | | ?????????????# #??# ########## #???????? | | ?????????????# #??# #???????? | | ?????????????# #??# ######## ##???????? | | ?????????????## ####### #??????# #????????? | | ??????????????# #?# #??????# #????????? | | ??????????????# #?# ### #??????# #????????? | | ??????????????# ### ### #??????# #????????? | | ??????????????# ## ## ##????# #???????? | | ??????????????# ##???# #???????? | +----------------------------------------------------+ Best States ------------- Heat Dissipation 25 Energy Generation 10 Energy Capacity 250 Matter Stores 300 Matter Capacity 300 Sight Range 16 Terrain Scan Density 10 Armor Coverage 225 Evasion (%) 55 Recoil Reduction 2 Item Schematics ----------------- None Robot Schematics ------------------ None Fabricated ------------ Nothing Alien Tech Used ----------------- None Achievements -------------- None Challenges ------------ None Game ------ Seed DeuteriumMobileFirepult Manual? 0 Play Time 00:18:57 Cumulative 334.2 hours Start 2023.11.19 @ 14:21:25 End 2023.11.19 @ 14:40:33 Sessions 1 Manual Loads 0 Difficulty Rogue Special Mode None Game No. 360 Rogue 333 Adventurer 2 Explorer 25 Win Type - Total 20 Types 17/1/0/2/0/0/0/0/0 Lore% 76 Gallery% 83 Achievement% 80 Wizard Run 0 Options --------- ASCII 1 Keyboard 1 Movement Numpad Keybinds 1 Fullscreen 1 Font 18/X11 Map View 76x50 Tactical HUD 1 Map Filters NONE Filters NONE Steam 1 RUN: 28f50579-7b59-42e9-8c31-5116f497f315